[Event "Titled Tuesday Blitz July 05 Early 2022"]
[White "Zhalmakhanov, Ramazan"]
[Black "Golubovskis, Maksims"]
[WhiteFideId "13706357"]
[BlackFideId "11608528"]
[WhiteElo "2397"]
[BlackElo "2163"]
[Result "1-0"]
[Round "01"]
[TimeControl "180+1"]
[Date "2022.07.05"]
[WhiteClock "0:00:18"]
[BlackClock "0:00:30"]

1. e4 {[%clk 0:03:00]}  c5 {[%clk 0:02:56]} 2. Nc3 {[%clk 0:03:00]}  d6 {[%clk 0:02:56]} 3. Nge2 {[%clk 0:03:01]}  Nf6 {[%clk 0:02:54]} 4. d4 {[%clk 0:03:01]}  cxd4 {[%clk 0:02:54]} 5. Nxd4 {[%clk 0:03:02]}  a6 {[%clk 0:02:54]} 6. Be2 {[%clk 0:02:57]}  e5 {[%clk 0:02:53]} 7. Nb3 {[%clk 0:02:57]}  Be7 {[%clk 0:02:53]} 8. O-O {[%clk 0:02:57]}  O-O {[%clk 0:02:54]} 9. Be3 {[%clk 0:02:55]}  Be6 {[%clk 0:02:53]} 10. Re1 {[%clk 0:02:53]}  Nbd7 {[%clk 0:02:51]} 11. a4 {[%clk 0:02:45]}  Qc7 {[%clk 0:02:45]} 12. a5 {[%clk 0:02:36]}  Rac8 {[%clk 0:02:42]} 13. Qd2 {[%clk 0:02:16]}  Rfd8 {[%clk 0:02:22]} 14. Red1 {[%clk 0:01:57]}  Nc5 {[%clk 0:02:18]} 15. Nxc5 {[%clk 0:01:47]}  dxc5 {[%clk 0:02:19]} 16. Qe1 {[%clk 0:01:47]}  Qc6 {[%clk 0:01:56]} 17. f3 {[%clk 0:01:47]}  c4 {[%clk 0:01:55]} 18. Na4 {[%clk 0:01:20]}  Nh5 {[%clk 0:01:29]} 19. Nb6 {[%clk 0:01:14]}  Bc5 {[%clk 0:01:24]} 20. Bxc5 {[%clk 0:01:06]}  Qxc5+ {[%clk 0:01:24]} 21. Qf2 {[%clk 0:01:06]}  Qxf2+ {[%clk 0:00:53]} 22. Kxf2 {[%clk 0:01:07]}  Rb8 {[%clk 0:00:44]} 23. Bxc4 {[%clk 0:01:02]}  Bxc4 {[%clk 0:00:41]} 24. Nxc4 {[%clk 0:01:03]}  f6 {[%clk 0:00:41]} 25. g3 {[%clk 0:00:55]}  Kf7 {[%clk 0:00:41]} 26. Nb6 {[%clk 0:00:37]}  Ke6 {[%clk 0:00:37]} 27. Rd5 {[%clk 0:00:20]}  Rxd5 {[%clk 0:00:35]} 28. exd5+ {[%clk 0:00:20]}  Kd6 {[%clk 0:00:34]} 29. b4 {[%clk 0:00:21]}  f5 {[%clk 0:00:29]} 30. c4 {[%clk 0:00:21]}  e4 {[%clk 0:00:30]} 31. c5+ {[%clk 0:00:19]}  Ke5 {[%clk 0:00:30]} 32. Nd7+ {[%clk 0:00:18]} 1-0


[Site "https://www.chess.com"]

[Event "Titled Tuesday Blitz July 05 Early 2022"]
[White "Adewumi, Tanitoluwa"]
[Black "Grandelius, Nils"]
[WhiteFideId "30966396"]
[BlackFideId "1710400"]
[WhiteElo "2602"]
[BlackElo "2617"]
[Result "0-1"]
[Round "02"]
[TimeControl "180+1"]
[Date "2022.07.05"]
[WhiteClock "0:00:59"]
[BlackClock "0:01:19"]

1. e4 {[%clk 0:03:00]}  c5 {[%clk 0:02:57]} 2. Nf3 {[%clk 0:02:55]}  d6 {[%clk 0:02:57]} 3. Bb5+ {[%clk 0:02:54]}  Nc6 {[%clk 0:02:54]} 4. O-O {[%clk 0:02:52]}  Bd7 {[%clk 0:02:52]} 5. Re1 {[%clk 0:02:52]}  Nf6 {[%clk 0:02:46]} 6. c3 {[%clk 0:02:49]}  a6 {[%clk 0:02:46]} 7. Bf1 {[%clk 0:02:47]}  Bg4 {[%clk 0:02:46]} 8. h3 {[%clk 0:02:41]}  Bxf3 {[%clk 0:02:46]} 9. Qxf3 {[%clk 0:02:41]}  e6 {[%clk 0:02:42]} 10. d3 {[%clk 0:02:35]}  Be7 {[%clk 0:02:42]} 11. g3 {[%clk 0:02:34]}  O-O {[%clk 0:02:40]} 12. Bg2 {[%clk 0:02:33]}  Rc8 {[%clk 0:02:38]} 13. Qe2 {[%clk 0:02:32]}  b5 {[%clk 0:02:35]} 14. f4 {[%clk 0:02:30]}  Nd7 {[%clk 0:02:27]} 15. Be3 {[%clk 0:02:27]}  b4 {[%clk 0:02:23]} 16. Nd2 {[%clk 0:02:09]}  Nb6 {[%clk 0:02:22]} 17. Rad1 {[%clk 0:02:03]}  Na4 {[%clk 0:02:17]} 18. Nc4 {[%clk 0:02:00]}  bxc3 {[%clk 0:02:16]} 19. b3 {[%clk 0:01:55]}  Nb6 {[%clk 0:02:13]} 20. f5 {[%clk 0:01:29]}  exf5 {[%clk 0:01:51]} 21. exf5 {[%clk 0:01:24]}  Bf6 {[%clk 0:01:51]} 22. Qf2 {[%clk 0:01:13]}  Re8 {[%clk 0:01:43]} 23. Bxc5 {[%clk 0:01:02]}  Rxe1+ {[%clk 0:01:30]} 24. Rxe1 {[%clk 0:00:59]}  dxc5 {[%clk 0:01:19]} 0-1


[Site "https://www.chess.com"]

[Event "Titled Tuesday Blitz July 05 Early 2022"]
[White "Aloma Vidal, Robert"]
[Black "Jones, Gawain C B"]
[WhiteFideId "2260409"]
[BlackFideId "409561"]
[WhiteElo "2435"]
[BlackElo "2657"]
[Result "0-1"]
[Round "02"]
[TimeControl "180+1"]
[Date "2022.07.05"]
[WhiteClock "0:00:08"]
[BlackClock "0:01:18"]

1. e4 {[%clk 0:03:00]}  e5 {[%clk 0:02:56]} 2. Nf3 {[%clk 0:03:00]}  Nc6 {[%clk 0:02:57]} 3. Bc4 {[%clk 0:03:00]}  Bc5 {[%clk 0:02:56]} 4. b4 {[%clk 0:02:58]}  Bxb4 {[%clk 0:02:54]} 5. c3 {[%clk 0:02:58]}  Bd6 {[%clk 0:02:44]} 6. d4 {[%clk 0:02:58]}  Nf6 {[%clk 0:02:44]} 7. O-O {[%clk 0:02:58]}  O-O {[%clk 0:02:43]} 8. Re1 {[%clk 0:02:51]}  h6 {[%clk 0:02:40]} 9. Nbd2 {[%clk 0:02:50]}  Re8 {[%clk 0:02:39]} 10. Bd3 {[%clk 0:02:30]}  Bf8 {[%clk 0:02:36]} 11. Nxe5 {[%clk 0:02:25]}  Nxe5 {[%clk 0:02:33]} 12. dxe5 {[%clk 0:02:26]}  Rxe5 {[%clk 0:02:33]} 13. f4 {[%clk 0:02:27]}  Re8 {[%clk 0:02:28]} 14. e5 {[%clk 0:02:25]}  Nd5 {[%clk 0:02:23]} 15. Qf3 {[%clk 0:01:45]}  c6 {[%clk 0:02:21]} 16. Ne4 {[%clk 0:01:26]}  d6 {[%clk 0:02:08]} 17. exd6 {[%clk 0:01:04]}  Bf5 {[%clk 0:02:04]} 18. Bd2 {[%clk 0:00:37]}  Bxe4 {[%clk 0:01:44]} 19. Rxe4 {[%clk 0:00:37]}  Rxe4 {[%clk 0:01:44]} 20. Bxe4 {[%clk 0:00:26]}  Nf6 {[%clk 0:01:43]} 21. Bc2 {[%clk 0:00:16]}  Qxd6 {[%clk 0:01:41]} 22. Be3 {[%clk 0:00:15]}  Qa3 {[%clk 0:01:37]} 23. Bd4 {[%clk 0:00:14]}  Bc5 {[%clk 0:01:34]} 24. Qf2 {[%clk 0:00:10]}  Bxd4 {[%clk 0:01:30]} 25. Qxd4 {[%clk 0:00:10]}  Qb2 {[%clk 0:01:27]} 26. Qd1 {[%clk 0:00:08]}  Qxc3 {[%clk 0:01:24]} 27. Kh1 {[%clk 0:00:08]}  Ng4 {[%clk 0:01:18]} 0-1


[Site "https://www.chess.com"]

[Event "Titled Tuesday Blitz July 05 Early 2022"]
[White "Fedoseev, Vladimir"]
[Black "Tregubov, Pavel V."]
[WhiteFideId "24130737"]
[BlackFideId "4115341"]
[WhiteElo "2726"]
[BlackElo "2341"]
[Result "1-0"]
[Round "02"]
[TimeControl "180+1"]
[Date "2022.07.05"]
[WhiteClock "0:00:05"]
[BlackClock "0:00:10"]

1. d4 {[%clk 0:02:53]}  Nf6 {[%clk 0:02:59]} 2. c4 {[%clk 0:02:53]}  e6 {[%clk 0:02:58]} 3. Nf3 {[%clk 0:02:54]}  Bb4+ {[%clk 0:02:58]} 4. Bd2 {[%clk 0:02:52]}  Qe7 {[%clk 0:02:59]} 5. g3 {[%clk 0:02:51]}  Bxd2+ {[%clk 0:02:58]} 6. Qxd2 {[%clk 0:02:50]}  Nc6 {[%clk 0:02:58]} 7. Bg2 {[%clk 0:02:50]}  Ne4 {[%clk 0:02:55]} 8. Qc2 {[%clk 0:02:49]}  Qb4+ {[%clk 0:02:55]} 9. Kf1 {[%clk 0:02:49]}  d5 {[%clk 0:02:50]} 10. cxd5 {[%clk 0:02:42]}  exd5 {[%clk 0:02:49]} 11. Nc3 {[%clk 0:02:42]}  Nxc3 {[%clk 0:02:40]} 12. Qxc3 {[%clk 0:02:40]}  Qxc3 {[%clk 0:02:24]} 13. bxc3 {[%clk 0:02:39]}  O-O {[%clk 0:02:17]} 14. Nd2 {[%clk 0:02:33]}  Be6 {[%clk 0:02:12]} 15. Rb1 {[%clk 0:02:29]}  Na5 {[%clk 0:02:06]} 16. e3 {[%clk 0:02:02]}  b6 {[%clk 0:01:58]} 17. Ke2 {[%clk 0:01:58]}  Rac8 {[%clk 0:01:55]} 18. Rhc1 {[%clk 0:01:54]}  c5 {[%clk 0:01:55]} 19. dxc5 {[%clk 0:01:48]}  Rxc5 {[%clk 0:01:54]} 20. Nb3 {[%clk 0:01:49]}  Nxb3 {[%clk 0:01:54]} 21. axb3 {[%clk 0:01:49]}  Rfc8 {[%clk 0:01:53]} 22. Kd2 {[%clk 0:01:49]}  Kf8 {[%clk 0:01:51]} 23. b4 {[%clk 0:01:44]}  R5c7 {[%clk 0:01:49]} 24. Ra1 {[%clk 0:01:45]}  Ke7 {[%clk 0:01:45]} 25. Ra3 {[%clk 0:01:42]}  Kd6 {[%clk 0:01:37]} 26. Rca1 {[%clk 0:01:42]}  a5 {[%clk 0:01:37]} 27. bxa5 {[%clk 0:01:25]}  bxa5 {[%clk 0:01:38]} 28. Bf1 {[%clk 0:01:22]}  Rc5 {[%clk 0:01:35]} 29. Rxa5 {[%clk 0:01:16]}  Rxc3 {[%clk 0:01:34]} 30. Bd3 {[%clk 0:01:16]}  Rb3 {[%clk 0:01:32]} 31. R1a2 {[%clk 0:01:00]}  Rcb8 {[%clk 0:01:27]} 32. Bc2 {[%clk 0:00:57]}  R3b4 {[%clk 0:01:20]} 33. Ra6+ {[%clk 0:00:53]}  Ke7 {[%clk 0:01:19]} 34. Ra7+ {[%clk 0:00:52]}  Kf6 {[%clk 0:01:19]} 35. R2a4 {[%clk 0:00:46]}  Rb2 {[%clk 0:01:08]} 36. Rc7 {[%clk 0:00:43]}  Rc8 {[%clk 0:01:00]} 37. Rf4+ {[%clk 0:00:41]}  Kg5 {[%clk 0:00:45]} 38. Rxc8 {[%clk 0:00:33]}  Bxc8 {[%clk 0:00:46]} 39. Rxf7 {[%clk 0:00:32]}  Kh6 {[%clk 0:00:44]} 40. Kc3 {[%clk 0:00:32]}  Ra2 {[%clk 0:00:43]} 41. Bb3 {[%clk 0:00:29]}  Ra5 {[%clk 0:00:32]} 42. Kb4 {[%clk 0:00:28]}  Ra1 {[%clk 0:00:32]} 43. Bxd5 {[%clk 0:00:27]}  Rc1 {[%clk 0:00:29]} 44. h4 {[%clk 0:00:25]}  g6 {[%clk 0:00:24]} 45. e4 {[%clk 0:00:24]}  Rc2 {[%clk 0:00:20]} 46. e5 {[%clk 0:00:20]}  Re2 {[%clk 0:00:17]} 47. f4 {[%clk 0:00:11]}  Re3 {[%clk 0:00:17]} 48. e6 {[%clk 0:00:06]}  Rxg3 {[%clk 0:00:11]} 49. e7 {[%clk 0:00:05]}  Re3 {[%clk 0:00:10]} 50. Bc6 {[%clk 0:00:05]} 1-0


[Site "https://www.chess.com"]

[Event "Titled Tuesday Blitz July 05 Early 2022"]
[White "Guzman, Christopher"]
[Black "Hansen, Eric"]
[WhiteFideId "6405096"]
[BlackFideId "2606771"]
[WhiteElo "2244"]
[BlackElo "2568"]
[Result "0-1"]
[Round "02"]
[TimeControl "180+1"]
[Date "2022.07.05"]
[WhiteClock "0:00:29"]
[BlackClock "0:01:29"]

1. e4 {[%clk 0:02:47]}  c5 {[%clk 0:02:54]} 2. Nf3 {[%clk 0:02:46]}  e6 {[%clk 0:02:54]} 3. d4 {[%clk 0:02:46]}  cxd4 {[%clk 0:02:55]} 4. Nxd4 {[%clk 0:02:47]}  Nc6 {[%clk 0:02:56]} 5. Nc3 {[%clk 0:02:44]}  a6 {[%clk 0:02:56]} 6. g3 {[%clk 0:02:44]}  Qc7 {[%clk 0:02:55]} 7. Bg2 {[%clk 0:02:43]}  d6 {[%clk 0:02:56]} 8. O-O {[%clk 0:02:43]}  Be7 {[%clk 0:02:53]} 9. a4 {[%clk 0:02:43]}  Bd7 {[%clk 0:02:53]} 10. h3 {[%clk 0:02:42]}  Nf6 {[%clk 0:02:53]} 11. Nb3 {[%clk 0:02:42]}  Rb8 {[%clk 0:02:52]} 12. a5 {[%clk 0:02:42]}  O-O {[%clk 0:02:49]} 13. Be3 {[%clk 0:02:42]}  Ne5 {[%clk 0:02:49]} 14. Bb6 {[%clk 0:02:39]}  Qc8 {[%clk 0:02:48]} 15. Nd2 {[%clk 0:02:39]}  Bc6 {[%clk 0:02:42]} 16. Re1 {[%clk 0:02:39]}  Re8 {[%clk 0:02:40]} 17. f4 {[%clk 0:02:38]}  Ned7 {[%clk 0:02:39]} 18. Bf2 {[%clk 0:02:39]}  Qc7 {[%clk 0:02:36]} 19. Ba7 {[%clk 0:02:34]}  Rbd8 {[%clk 0:02:35]} 20. Bf2 {[%clk 0:02:35]}  Bf8 {[%clk 0:02:32]} 21. Qe2 {[%clk 0:02:28]}  h6 {[%clk 0:02:29]} 22. Nc4 {[%clk 0:02:15]}  d5 {[%clk 0:02:01]} 23. Nb6 {[%clk 0:02:07]}  dxe4 {[%clk 0:02:01]} 24. Nxe4 {[%clk 0:02:02]}  Nxe4 {[%clk 0:02:01]} 25. Bxe4 {[%clk 0:02:03]}  Bxe4 {[%clk 0:02:01]} 26. Qxe4 {[%clk 0:02:03]}  Nf6 {[%clk 0:02:01]} 27. Qe2 {[%clk 0:02:02]}  Bc5 {[%clk 0:02:00]} 28. Rad1 {[%clk 0:01:57]}  Bxf2+ {[%clk 0:01:59]} 29. Qxf2 {[%clk 0:01:57]}  Rxd1 {[%clk 0:01:51]} 30. Rxd1 {[%clk 0:01:57]}  Ne4 {[%clk 0:01:52]} 31. Qe3 {[%clk 0:01:45]}  Qxc2 {[%clk 0:01:51]} 32. Rd7 {[%clk 0:01:41]}  Qb1+ {[%clk 0:01:43]} 33. Kg2 {[%clk 0:01:39]}  Qxb2+ {[%clk 0:01:43]} 34. Kf3 {[%clk 0:01:35]}  f5 {[%clk 0:01:33]} 35. g4 {[%clk 0:01:29]}  Qh2 {[%clk 0:01:33]} 36. gxf5 {[%clk 0:01:25]}  exf5 {[%clk 0:01:32]} 37. Qb3+ {[%clk 0:01:23]}  Kh8 {[%clk 0:01:30]} 38. Qf7 {[%clk 0:00:29]}  Qf2# {[%clk 0:01:29]} 0-1


[Site "https://www.chess.com"]

[Event "Titled Tuesday Blitz July 05 Early 2022"]
[White "Hansen, Sune Berg"]
[Black "Esipenko, Andrey"]
[WhiteFideId "1400266"]
[BlackFideId "24175439"]
[WhiteElo "2639"]
[BlackElo "2617"]
[Result "1-0"]
[Round "02"]
[TimeControl "180+1"]
[Date "2022.07.05"]
[WhiteClock "0:00:48"]
[BlackClock "0:00:12"]

1. Nf3 {[%clk 0:03:00]}  d5 {[%clk 0:02:58]} 2. g3 {[%clk 0:03:00]}  Nf6 {[%clk 0:02:53]} 3. Bg2 {[%clk 0:03:01]}  c5 {[%clk 0:02:51]} 4. O-O {[%clk 0:03:00]}  e6 {[%clk 0:02:51]} 5. d3 {[%clk 0:03:00]}  Nc6 {[%clk 0:02:51]} 6. Nbd2 {[%clk 0:02:59]}  g6 {[%clk 0:02:51]} 7. e4 {[%clk 0:02:58]}  Bg7 {[%clk 0:02:52]} 8. Re1 {[%clk 0:02:57]}  O-O {[%clk 0:02:51]} 9. c3 {[%clk 0:02:57]}  b6 {[%clk 0:02:44]} 10. Nf1 {[%clk 0:02:55]}  dxe4 {[%clk 0:02:36]} 11. dxe4 {[%clk 0:02:52]}  Bb7 {[%clk 0:02:37]} 12. Qe2 {[%clk 0:02:45]}  Qc8 {[%clk 0:02:33]} 13. e5 {[%clk 0:02:39]}  Nd5 {[%clk 0:02:32]} 14. h4 {[%clk 0:02:35]}  Ba6 {[%clk 0:02:25]} 15. Qe4 {[%clk 0:02:35]}  Rd8 {[%clk 0:02:08]} 16. N1h2 {[%clk 0:02:34]}  Qc7 {[%clk 0:01:59]} 17. h5 {[%clk 0:02:22]}  Nde7 {[%clk 0:01:54]} 18. hxg6 {[%clk 0:02:20]}  hxg6 {[%clk 0:01:52]} 19. Ng4 {[%clk 0:02:15]}  Bd3 {[%clk 0:01:52]} 20. Qf4 {[%clk 0:02:14]}  Nd5 {[%clk 0:01:51]} 21. Nh6+ {[%clk 0:02:05]}  Kf8 {[%clk 0:01:50]} 22. Qh4 {[%clk 0:02:01]}  Nxe5 {[%clk 0:01:50]} 23. Ng5 {[%clk 0:01:56]}  Bf5 {[%clk 0:00:53]} 24. g4 {[%clk 0:01:51]}  Nxg4 {[%clk 0:00:45]} 25. Nxg4 {[%clk 0:01:39]}  Rac8 {[%clk 0:00:45]} 26. Nh6 {[%clk 0:01:37]}  Rd7 {[%clk 0:00:45]} 27. Nxf5 {[%clk 0:01:35]}  exf5 {[%clk 0:00:35]} 28. c4 {[%clk 0:01:27]}  Nf6 {[%clk 0:00:30]} 29. Bf4 {[%clk 0:01:25]}  Qd8 {[%clk 0:00:31]} 30. Nh7+ {[%clk 0:01:04]}  Kg8 {[%clk 0:00:28]} 31. Bg5 {[%clk 0:01:04]}  Rd6 {[%clk 0:00:25]} 32. Bd5 {[%clk 0:01:04]}  b5 {[%clk 0:00:16]} 33. Rad1 {[%clk 0:00:57]}  Qb6 {[%clk 0:00:16]} 34. Nxf6+ {[%clk 0:00:52]}  Bxf6 {[%clk 0:00:16]} 35. Qh6 {[%clk 0:00:51]}  Bg7 {[%clk 0:00:13]} 36. Bxf7+ {[%clk 0:00:48]}  Kxf7 {[%clk 0:00:12]} 37. Re7+ {[%clk 0:00:48]} 1-0


[Site "https://www.chess.com"]

[Event "Titled Tuesday Blitz July 05 Early 2022"]
[White "Ibarra Jerez, Jose Carlos"]
[Black "Garcia Ramos, Daniel"]
[WhiteFideId "2226332"]
[BlackFideId "32010311"]
[WhiteElo "2628"]
[BlackElo "2268"]
[Result "1-0"]
[Round "02"]
[TimeControl "180+1"]
[Date "2022.07.05"]
[WhiteClock "0:00:04"]
[BlackClock "0:00:03"]

1. e4 {[%clk 0:03:00]}  c6 {[%clk 0:03:00]} 2. Nf3 {[%clk 0:03:00]}  d5 {[%clk 0:03:00]} 3. d3 {[%clk 0:03:01]}  Qc7 {[%clk 0:02:59]} 4. exd5 {[%clk 0:03:01]}  cxd5 {[%clk 0:03:00]} 5. c4 {[%clk 0:03:01]}  Nf6 {[%clk 0:03:00]} 6. Nc3 {[%clk 0:03:01]}  e6 {[%clk 0:03:00]} 7. g3 {[%clk 0:03:00]}  Nc6 {[%clk 0:02:59]} 8. Bg2 {[%clk 0:03:00]}  Bb4 {[%clk 0:02:59]} 9. O-O {[%clk 0:02:59]}  O-O {[%clk 0:02:58]} 10. Nb5 {[%clk 0:02:45]}  Qd8 {[%clk 0:02:54]} 11. a3 {[%clk 0:02:44]}  Be7 {[%clk 0:02:54]} 12. Qe2 {[%clk 0:02:41]}  Bd7 {[%clk 0:02:48]} 13. Bf4 {[%clk 0:02:39]}  a6 {[%clk 0:02:44]} 14. Nc3 {[%clk 0:02:33]}  Rc8 {[%clk 0:02:41]} 15. Rfe1 {[%clk 0:02:33]}  Re8 {[%clk 0:02:40]} 16. Rac1 {[%clk 0:02:27]}  h6 {[%clk 0:02:29]} 17. b4 {[%clk 0:02:22]}  d4 {[%clk 0:02:02]} 18. Nb1 {[%clk 0:02:14]}  e5 {[%clk 0:01:23]} 19. Nxe5 {[%clk 0:01:43]}  Nxe5 {[%clk 0:01:06]} 20. Bxe5 {[%clk 0:01:33]}  Ng4 {[%clk 0:01:06]} 21. Qb2 {[%clk 0:01:11]}  Bg5 {[%clk 0:00:20]} 22. Bxd4 {[%clk 0:01:03]}  Bxc1 {[%clk 0:00:20]} 23. Rxc1 {[%clk 0:01:03]}  Bf5 {[%clk 0:00:20]} 24. Bxb7 {[%clk 0:00:45]}  Rc7 {[%clk 0:00:19]} 25. Bd5 {[%clk 0:00:45]}  Bxd3 {[%clk 0:00:16]} 26. Bxg7 {[%clk 0:00:30]}  Qg5 {[%clk 0:00:14]} 27. Bd4 {[%clk 0:00:22]}  Re2 {[%clk 0:00:14]} 28. Qc3 {[%clk 0:00:20]}  Bxb1 {[%clk 0:00:07]} 29. Rxb1 {[%clk 0:00:19]}  Nxf2 {[%clk 0:00:04]} 30. Bxf2 {[%clk 0:00:14]}  Qxd5 {[%clk 0:00:02]} 31. c5 {[%clk 0:00:10]}  Qf5 {[%clk 0:00:02]} 32. Rf1 {[%clk 0:00:11]}  Rd7 {[%clk 0:00:02]} 33. c6 {[%clk 0:00:10]}  Rc7 {[%clk 0:00:01]} 34. a4 {[%clk 0:00:10]}  Qe4 {[%clk 0:00:02]} 35. b5 {[%clk 0:00:09]}  axb5 {[%clk 0:00:02]} 36. axb5 {[%clk 0:00:10]}  Rc2 {[%clk 0:00:03]} 37. Qf6 {[%clk 0:00:09]}  Qd5 {[%clk 0:00:02]} 38. h4 {[%clk 0:00:05]}  h5 {[%clk 0:00:02]} 39. Qf4 {[%clk 0:00:05]}  Rb2 {[%clk 0:00:02]} 40. Qxc7 {[%clk 0:00:04]}  Rxb5 {[%clk 0:00:01]} 41. Qc8+ {[%clk 0:00:05]}  Kg7 {[%clk 0:00:02]} 42. c7 {[%clk 0:00:03]}  Rb2 {[%clk 0:00:03]} 43. Qd8 {[%clk 0:00:04]} 1-0


[Site "https://www.chess.com"]

[Event "Titled Tuesday Blitz July 05 Early 2022"]
[White "Jubin Jimmy"]
[Black "Kucuksari, Kaan"]
[WhiteFideId "46686614"]
[BlackFideId "6380166"]
[WhiteElo "2219"]
[BlackElo "2305"]
[Result "1-0"]
[Round "02"]
[TimeControl "180+1"]
[Date "2022.07.05"]
[WhiteClock "0:00:58"]
[BlackClock "0:00:03"]

1. d4 {[%clk 0:03:00]}  Nf6 {[%clk 0:02:56]} 2. c4 {[%clk 0:03:01]}  e6 {[%clk 0:02:56]} 3. Nc3 {[%clk 0:03:01]}  Bb4 {[%clk 0:02:57]} 4. Qc2 {[%clk 0:03:02]}  O-O {[%clk 0:02:54]} 5. a3 {[%clk 0:03:01]}  Bxc3+ {[%clk 0:02:54]} 6. Qxc3 {[%clk 0:03:02]}  b6 {[%clk 0:02:54]} 7. Bg5 {[%clk 0:03:02]}  h6 {[%clk 0:02:52]} 8. Bh4 {[%clk 0:03:02]}  Bb7 {[%clk 0:02:49]} 9. e3 {[%clk 0:03:02]}  d6 {[%clk 0:02:48]} 10. Ne2 {[%clk 0:03:02]}  c5 {[%clk 0:02:45]} 11. Rd1 {[%clk 0:02:56]}  Ne4 {[%clk 0:02:41]} 12. Bxd8 {[%clk 0:02:55]}  Nxc3 {[%clk 0:02:42]} 13. Nxc3 {[%clk 0:02:56]}  Rxd8 {[%clk 0:02:41]} 14. dxc5 {[%clk 0:02:56]}  bxc5 {[%clk 0:02:42]} 15. Nb5 {[%clk 0:02:56]}  Nc6 {[%clk 0:02:13]} 16. Nxd6 {[%clk 0:02:49]}  Rab8 {[%clk 0:02:10]} 17. Ne4 {[%clk 0:02:39]}  Ne5 {[%clk 0:02:01]} 18. Rxd8+ {[%clk 0:02:32]}  Rxd8 {[%clk 0:02:01]} 19. Nxc5 {[%clk 0:02:32]}  Ba8 {[%clk 0:01:58]} 20. f3 {[%clk 0:02:26]}  a5 {[%clk 0:01:55]} 21. Be2 {[%clk 0:02:20]}  Rc8 {[%clk 0:01:56]} 22. b4 {[%clk 0:02:19]}  axb4 {[%clk 0:01:55]} 23. axb4 {[%clk 0:02:19]}  Nc6 {[%clk 0:01:55]} 24. Nd3 {[%clk 0:02:18]}  Ne7 {[%clk 0:01:50]} 25. c5 {[%clk 0:02:15]}  Bc6 {[%clk 0:01:47]} 26. e4 {[%clk 0:02:12]}  Bb5 {[%clk 0:01:40]} 27. Ne5 {[%clk 0:02:06]}  Rb8 {[%clk 0:01:35]} 28. Bxb5 {[%clk 0:02:06]}  Rxb5 {[%clk 0:01:36]} 29. Nd3 {[%clk 0:02:07]}  Nc6 {[%clk 0:01:36]} 30. Kd2 {[%clk 0:01:56]}  Rb8 {[%clk 0:01:24]} 31. Kc3 {[%clk 0:01:55]}  e5 {[%clk 0:01:20]} 32. Rb1 {[%clk 0:01:53]}  f6 {[%clk 0:01:19]} 33. b5 {[%clk 0:01:52]}  Nd4 {[%clk 0:01:18]} 34. Kc4 {[%clk 0:01:52]}  Nc2 {[%clk 0:01:15]} 35. Kd5 {[%clk 0:01:44]}  Rd8+ {[%clk 0:01:08]} 36. Kc6 {[%clk 0:01:41]}  Rxd3 {[%clk 0:00:37]} 37. Kb7 {[%clk 0:01:34]}  Rc3 {[%clk 0:00:26]} 38. c6 {[%clk 0:01:33]}  Na3 {[%clk 0:00:22]} 39. Rb4 {[%clk 0:01:26]}  Nc2 {[%clk 0:00:18]} 40. Ra4 {[%clk 0:01:10]}  Nd4 {[%clk 0:00:16]} 41. c7 {[%clk 0:01:09]}  Nxb5 {[%clk 0:00:12]} 42. c8=Q+ {[%clk 0:01:08]}  Rxc8 {[%clk 0:00:12]} 43. Kxc8 {[%clk 0:01:09]}  Kf7 {[%clk 0:00:08]} 44. Kd7 {[%clk 0:01:07]}  Kg6 {[%clk 0:00:09]} 45. Ke7 {[%clk 0:01:01]}  Nc3 {[%clk 0:00:08]} 46. Ra7 {[%clk 0:00:59]}  Nb5 {[%clk 0:00:04]} 47. Rd7 {[%clk 0:00:59]}  Nd4 {[%clk 0:00:04]} 48. Kf8 {[%clk 0:00:59]}  Ne6+ {[%clk 0:00:04]} 49. Kg8 {[%clk 0:00:59]}  h5 {[%clk 0:00:03]} 50. Re7 {[%clk 0:00:59]}  Nf4 {[%clk 0:00:03]} 51. Rxg7+ {[%clk 0:01:00]}  Kh6 {[%clk 0:00:04]} 52. Kf7 {[%clk 0:01:00]}  h4 {[%clk 0:00:03]} 53. g3 {[%clk 0:01:00]}  hxg3 {[%clk 0:00:02]} 54. hxg3 {[%clk 0:01:01]}  Nh5 {[%clk 0:00:03]} 55. Rg6+ {[%clk 0:01:01]}  Kh7 {[%clk 0:00:03]} 56. Rg4 {[%clk 0:01:01]}  Kh6 {[%clk 0:00:03]} 57. Rh4 {[%clk 0:01:00]}  Kg5 {[%clk 0:00:02]} 58. Rxh5+ {[%clk 0:00:58]}  Kxh5 {[%clk 0:00:03]} 59. Kxf6 {[%clk 0:00:58]} 1-0


[Site "https://www.chess.com"]